bitfinex/quotes_ETHUSD_20220226
["timestamp","ask_amount","ask_price","bid_price","bid_amount"]
[1645836023498,3.124,2828.9,2827.1,0.1414]
[1645836023499,0.35305,2828.8,2827.1,0.1414]
[1645836023898,0.88496,2828.7,2827.1,0.1414]
[1645836024102,1.78210618,2828.6,2827.1,0.1414]
[1645836024300,1.25258155,2827.8,2827.1,0.1414]
[1645836024532,1.25258155,2827.8,2827.0,0.00164047]
[1645836024533,9.5,2827.7,2827.0,0.00164047]
[1645836024735,1.25258155,2827.8,2827.0,0.00164047]
[1645836024736,3.90878155,2827.8,2827.0,0.00164047]
[1645836024935,3.90878155,2827.8,2825.3,1.2427]
[1645836024936,12.25593,2827.7,2825.3,1.2427]
[1645836025132,0.03778398,2827.6,2825.3,2.23048398]
[1645836025332,0.282,2827.5,2825.4,0.1415]
[1645836025737,0.88542,2827.2,2825.4,0.1415]
[1645836025938,0.282,2827.5,2825.4,0.1415]
[1645836026140,0.03778398,2827.6,2826.0,1.0]
[1645836026536,0.03778398,2827.6,2825.7,0.00538325]
[1645836026741,0.03778398,2827.6,2825.6,1.09661376]
[1645836026934,0.03778398,2827.6,2825.7,0.3541]
[1645836027138,0.03778398,2827.6,2826.4,5.0]
[1645836027337,4.0089,2828.9,2826.6,1.0]
[1645836027338,0.00245752,2826.9,2826.6,1.0]
[1645836027935,0.00245752,2826.9,2826.7,0.1414]
[1645836028187,0.88487,2828.6,2826.7,0.1414]
[1645836028391,0.03778398,2828.8,2826.7,3.6414]
[1645836028592,0.03778398,2828.8,2826.4,0.1414]
[1645836028795,1.76991,2828.7,2826.1,0.1414]
[1645836028996,1.76991,2828.7,2825.7,0.20092403]
[1645836029191,2.05191,2828.7,2825.9,1.0]
[1645836029396,2.05191,2828.7,2826.0,3.5]
[1645836029998,0.01288329,2828.4,2825.5,3.5]
[1645836030198,0.01288329,2828.4,2825.0,3.5]
[1645836030199,1.77072,2827.5,2825.0,3.5]
[1645836030392,1.77072,2827.5,2825.8,1.0]
[1645836030592,0.282,2827.7,2824.6,0.26305177]
[1645836030794,0.282,2827.7,2825.2,0.01294345]
[1645836030992,1.20834729,2826.3,2825.6,0.00538638]
[1645836031793,0.282,2827.0,2825.3,1.23048398]
[1645836032043,0.282,2827.0,2825.4,3.5]
[1645836032242,0.282,2827.0,2825.3,1.23048398]
[1645836032243,0.00248569,2826.1,2825.6,0.00590726]
[1645836033243,0.00248569,2826.1,2825.6,0.00590724]
[1645836033244,0.00248563,2826.1,2825.6,0.00590724]
[1645836034348,1.77138,2826.3,2825.3,1.23048398]
[1645836034550,1.77138,2826.3,2823.6,3.7511972]
[1645836034551,12.88569,2826.0,2824.3,0.0295398]
[1645836034754,12.88569,2826.0,2823.6,3.7511972]
[1645836034755,0.01209779,2825.3,2823.6,4.74212368]
[1645836034943,1.0,2824.8,2823.6,3.74212368]
[1645836035142,0.282,2824.7,2823.6,3.74212368]
[1645836035344,0.282,2824.7,2822.4,0.06]
[1645836035345,1.12603096,2824.6,2823.7,0.1416]
[1645836035545,1.12603096,2824.6,2822.4,0.06]
[1645836035546,2.65949,2824.5,2822.5,0.1416]
[1645836035801,2.94149,2824.5,2822.5,0.1416]
[1645836035997,2.93321068,2824.5,2822.5,0.1416]
[1645836036198,0.282,2824.5,2822.5,0.1416]
[1645836036602,0.88621,2824.3,2822.5,0.1416]
[1645836036799,0.782,2825.1,2822.7,0.0123573]
[1645836036999,0.282,2825.1,2822.8,0.1416]
[1645836037211,0.1376,2825.6,2823.3,0.01234687]
[1645836037212,1.35830564,2825.3,2823.3,0.01234687]
[1645836037399,1.77181,2825.9,2823.4,12.0]
[1645836037604,3.25679997,2826.2,2823.9,0.01294844]
[1645836037809,3.25679997,2826.2,2824.0,5.1414]
[1645836037810,1.0,2826.0,2824.0,5.1414]
[1645836038003,1.0,2826.0,2824.5,1.0]
[1645836038203,0.82698,2827.4,2824.6,4.53934521]
[1645836038405,0.89803329,2827.7,2824.6,4.53934521]
[1645836038406,1.05003216,2827.2,2825.1,1.02762063]
[1645836038603,0.36580329,2827.7,2825.5,1.0]
[1645836038805,4.32950934,2828.0,2825.5,1.0]
[1645836038806,0.5,2827.9,2825.5,1.0]
[1645836039007,0.5,2827.9,2825.6,3.5]
[1645836039209,0.5,2827.9,2826.1,0.4356]
[1645836039447,5.954e-05,2826.7,2826.1,0.64868669]
[1645836039643,0.5,2828.8,2827.1,0.00074046]
[1645836039851,4.5644,2829.3,2826.6,0.09214046]
[1645836039852,0.8847,2829.1,2826.6,0.09214046]
[1645836040148,0.8847,2829.1,2826.8,1.0]
[1645836040149,4.5644,2827.6,2826.8,1.0]
[1645836040343,0.01221995,2828.6,2826.8,1.0]
[1645836040344,0.88506,2828.2,2826.8,1.0]
[1645836040747,1.37319228,2827.2,2825.5,0.1414]
[1645836040946,1.37319228,2827.2,2825.4,0.23585427]
[1645836041147,4.5644,2827.3,2826.0,1.0]
[1645836041350,5.44946,2828.1,2826.0,1.0]
[1645836041746,0.88506,2828.1,2825.2,0.21796774]
[1645836041948,1.77028,2827.7,2825.2,0.21796774]
[1645836042150,1.01454104,2827.6,2825.7,1.0]
[1645836042360,1.01454104,2827.6,2825.8,4.18883701]
[1645836042549,1.01454104,2827.6,2825.8,0.8849604]
[1645836042751,1.01454104,2827.6,2825.8,1.0]
[1645836042951,1.01454104,2827.6,2826.3,1.0]
[1645836043190,0.13819997,2828.0,2826.3,1.0]
[1645836043191,4.70259997,2828.0,2826.3,1.0]
[1645836043390,0.13819997,2828.0,2826.3,1.0]
[1645836043693,0.5,2828.7,2826.6,0.4356]
[1645836043892,0.5,2828.7,2828.1,1.0]
[1645836044093,0.5,2828.7,2827.3,1.35228289]
[1645836044294,1.0,2829.7,2828.0,0.4356]
[1645836044498,1.0,2829.7,2827.9,0.884263]
[1645836044696,1.0,2829.7,2828.0,0.55090444]
[1645836044902,1.0,2829.7,2828.4,1.0]
[1645836045096,2.32941912,2829.7,2828.4,1.0]
[1645836045298,1.0,2829.7,2828.5,3.5]
[1645836045506,0.89705841,2831.1,2828.5,3.5]
[1645836045507,0.5,2831.7,2829.3,0.4356]
[1645836045698,0.5,2831.7,2829.4,3.74371019]
[1645836045897,0.04035806,2831.0,2829.0,3.51299506]
[1645836046097,4.5644,2830.7,2829.0,0.01299506]
[1645836046297,4.5644,2830.8,2829.8,1.0]
[1645836046499,1.90614997,2831.6,2829.9,3.5]
[1645836046698,0.04320018,2831.5,2829.9,4.5]
[1645836046943,7.3315,2833.2,2830.3,12.0]
[1645836047153,0.782,2833.5,2831.6,0.4356]
[1645836047154,0.5,2833.5,2831.6,0.4356]
[1645836047344,0.14415908,2834.8,2832.1,0.01275234]
[1645836047548,0.14415908,2834.8,2832.3,0.4356]
[1645836047742,0.1411,2834.7,2833.4,1.0]
[1645836047943,1.0,2834.2,2833.4,1.0]
[1645836048145,0.00306183,2834.8,2833.4,1.0]
[1645836048347,0.1411,2834.7,2832.7,0.19944997]
[1645836048546,0.1411,2834.7,2832.3,0.3]
[1645836048547,4.5644,2834.3,2832.3,0.4356]
[1645836048751,0.15035121,2835.2,2833.5,1.0]
[1645836048949,0.01297545,2836.1,2833.6,12.22324412]
[1645836049152,1.0,2836.7,2833.7,0.21510116]
[1645836049451,6.5992,2837.2,2835.7,0.024]
[1645836049452,0.141,2836.6,2835.7,0.024]
[1645836049749,3.5,2837.1,2835.7,0.024]
[1645836049750,1.33856377,2836.2,2835.7,0.024]
[1645836049949,0.1409,2836.1,2835.7,0.024]
[1645836050450,0.1409,2836.1,2835.7,0.012]
[1645836051311,0.153023,2836.1,2835.7,0.012]
[1645836051615,0.153023,2836.1,2835.1,0.024]
[1645836052012,0.13819997,2837.3,2835.1,0.024]
[1645836052013,0.01292774,2836.5,2835.1,0.024]
[1645836052411,0.88244,2836.7,2835.5,0.012]
[1645836052611,0.1409,2836.6,2835.5,0.012]
[1645836053017,0.00251558,2835.9,2835.5,0.012]
[1645836053214,0.1409,2835.8,2835.5,0.012]
[1645836053411,0.1409,2835.8,2835.1,1.012]
[1645836053412,0.1409,2835.8,2835.1,1.0]
[1645836054011,0.1409,2836.9,2835.1,1.0]
[1645836054211,0.00251558,2835.8,2835.1,1.0]
[1645836054439,1.1877968,2835.7,2835.1,1.0]
[1645836054644,1.01479058,2836.8,2835.2,12.0]
[1645836054950,1.0,2837.8,2835.6,5.0]
[1645836055146,1.0,2837.8,2836.1,0.01235333]
[1645836055147,0.35716714,2837.8,2836.1,0.01235333]
[1645836055350,0.35716714,2837.8,2835.7,4.57832558]
[1645836055351,6.714e-05,2837.8,2837.4,0.01230881]
[1645836055548,2.802,2839.6,2837.0,5.0]
[1645836055745,1.41579619,2839.2,2837.1,4.95923413]
[1645836055951,0.1409,2839.1,2837.2,0.24891772]
[1645836056146,0.1409,2839.1,2837.5,5.8811]
[1645836056346,0.44376861,2839.3,2837.7,9.0]
[1645836056547,0.0909,2839.9,2838.3,0.012]
[1645836056747,0.1409,2839.2,2838.3,0.012]
[1645836056956,0.425,2839.2,2838.3,0.012]
[1645836057151,0.1409,2839.1,2838.3,0.012]
[1645836057356,0.425,2839.0,2838.3,0.012]
[1645836057547,0.425,2839.0,2838.1,0.012]
[1645836057548,0.1409,2838.9,2838.1,0.012]
[1645836057853,0.88178,2838.7,2838.1,0.012]
[1645836058050,1.03983,2838.6,2838.1,0.012]
[1645836058302,1.03983,2838.6,2836.3,1.0]
[1645836058303,0.00271707,2838.0,2836.3,1.0]
[1645836058504,0.00271707,2838.0,2836.0,0.13173]
[1645836058505,0.88218,2837.7,2836.0,0.13173]
[1645836058710,0.425,2837.6,2835.6,1.0]
[1645836058912,0.425,2837.6,2836.0,0.01240814]
[1645836059107,0.141,2837.5,2836.0,0.01240814]
[1645836059311,0.566,2837.5,2835.7,1.0]
[1645836059511,0.566,2837.5,2835.7,0.85]
[1645836059707,0.566,2837.5,2835.4,0.8496]
[1645836059911,1.42155938,2836.2,2835.4,0.8496]
[1645836060112,1.42155938,2836.2,2835.1,0.012]
[1645836060113,0.5659,2836.1,2835.1,0.012]
[1645836060315,0.5659,2836.1,2835.3,0.00612295]
[1645836060316,0.425,2836.1,2835.3,0.00612295]
[1645836060813,0.141,2836.5,2835.3,0.00612295]
[1645836061013,0.00248414,2836.7,2835.3,0.00612295]
[1645836061413,0.42748414,2836.7,2835.3,0.00612295]
[1645836061608,1.09472141,2836.0,2835.2,0.012]
[1645836061809,0.141,2836.6,2835.2,0.012]
[1645836062236,0.141,2836.6,2835.6,0.012]
[1645836062637,0.00199388,2836.3,2835.6,0.012]
[1645836062840,1.42720652,2836.2,2835.6,0.012]
[1645836063036,0.1409,2836.1,2835.6,0.012]
[1645836063438,10.5,2835.9,2835.3,0.00578265]
[1645836063638,0.5659,2835.8,2835.3,8.265e-05]
[1645836063846,0.5659,2835.8,2832.2,0.01281535]
[1645836063847,12.0,2835.6,2832.2,0.01281535]
[1645836064047,12.0,2835.6,2831.4,0.1352]
[1645836064048,4.0661,2835.5,2833.1,0.8496]
[1645836064237,0.88312,2834.7,2833.1,0.8496]
[1645836064542,2.6494229,2834.8,2832.4,0.02315438]
[1645836064543,5.0,2834.2,2832.4,0.02315438]
[1645836064741,0.2658005,2834.0,2832.4,0.02315438]
[1645836064947,2.46035288,2833.7,2832.4,0.02315438]
[1645836065142,2.46035288,2833.7,2830.8,0.01203927]
[1645836065143,0.26009346,2833.5,2830.8,0.01203927]
[1645836065344,1.7677068,2832.7,2830.1,1.1361]
[1645836065544,1.7677068,2832.7,2830.9,0.04717915]
[1645836065545,0.25827996,2832.5,2830.9,0.04717915]
[1645836065796,0.67098331,2832.4,2830.9,0.04717915]
[1645836065992,0.8682,2832.3,2830.9,0.04717915]
[1645836066195,0.8682,2832.3,2830.1,1.1361]
[1645836066196,0.425,2832.2,2830.2,0.05115812]
[1645836066391,1.02497,2832.5,2830.2,0.05115812]
[1645836066392,0.425,2832.1,2831.6,0.00584901]
[1645836066592,0.88387,2832.5,2831.6,0.00584901]
[1645836066593,0.88393,2831.9,2831.6,0.00584901]
[1645836066794,0.88393,2831.9,2831.7,0.04263176]
[1645836066795,0.425,2831.8,2831.7,0.04263176]
[1645836066994,0.425,2831.8,2831.1,0.02339954]
[1645836066995,8.0,2831.7,2831.1,0.02339954]
[1645836067197,0.425,2831.6,2830.1,1.1361]
[1645836067495,0.88418,2831.3,2830.1,1.1361]
[1645836067695,0.5663,2831.2,2830.1,1.1361]
[1645836067899,0.5663,2831.2,2829.2,0.01267291]
[1645836067900,12.0,2831.1,2829.2,0.01267291]
[1645836068096,5.6938856,2831.0,2828.7,1.0]
[1645836068307,0.88445,2830.5,2828.7,1.0]
[1645836068497,0.5663,2830.4,2828.7,1.0]
[1645836068701,0.425,2830.9,2830.6,1.02765981]
[1645836069302,0.30305,2832.4,2830.6,1.02765981]
[1645836069303,0.1413,2830.8,2830.6,1.02765981]
[1645836069539,0.1413,2831.2,2830.6,1.02765981]
[1645836069942,0.1413,2831.2,2829.0,1.01277606]
[1645836069943,11.5,2831.1,2829.0,1.01277606]
[1645836070143,4.0663,2831.0,2830.6,0.00614119]
[1645836070343,0.425,2830.9,2830.6,0.00614119]
[1645836070543,1.44299917,2830.8,2830.6,0.00614119]
[1645836070952,0.425,2830.9,2829.5,1.0]
[1645836071248,0.13819997,2831.2,2830.6,0.00614119]
[1645836071444,0.425,2832.1,2830.6,0.00614119]
[1645836072043,0.1412,2832.0,2830.1,0.8496]
[1645836072245,0.1412,2832.0,2830.4,0.01287899]
[1645836072447,0.13819997,2832.4,2831.2,0.00614005]
[1645836073190,1.1817162,2832.1,2831.2,0.00614005]
[1645836073392,0.13819997,2832.4,2831.2,0.00614005]
[1645836073600,0.13819997,2832.4,2831.5,0.00613963]
[1645836074294,1.76675,2833.9,2831.5,0.00613963]
[1645836074295,0.01010396,2833.8,2831.6,12.8832]
[1645836074497,1.34276252,2833.6,2832.0,0.3]
[1645836074697,1.34276252,2833.6,2831.7,0.20446279]
[1645836074896,0.00812632,2833.8,2832.3,0.8496]
[1645836075112,0.00812632,2833.8,2832.4,5.0]
[1645836075305,0.00812632,2833.8,2832.5,0.1541]
[1645836075502,0.00812632,2833.8,2832.6,0.8496]
[1645836075698,0.1411,2833.7,2832.7,0.26733678]
[1645836075898,0.1411,2833.7,2833.1,0.8496]
[1645836075899,1.08322974,2833.7,2833.1,0.8496]
[1645836076109,1.08322974,2833.7,2832.1,1.91961]
[1645836076110,0.1411,2833.6,2831.7,1.0]
[1645836076299,0.1411,2833.6,2831.7,0.5]
[1645836076971,0.1411,2833.6,2831.6,16.5]
[1645836077160,0.1411,2833.8,2831.6,16.5]
[1645836077460,0.14358393,2833.8,2832.0,1.1831]
[1645836077761,0.14358393,2833.8,2832.1,1.1541]
[1645836077958,1.37892154,2833.4,2832.1,1.0]
[1645836078157,0.1411,2833.3,2832.1,1.0]
[1645836078665,0.00248393,2833.8,2832.1,1.0]
[1645836078666,0.0127349,2833.6,2832.1,1.0]
[1645836078868,0.01285108,2832.8,2832.0,0.02401753]
[1645836079067,0.5661,2832.7,2832.0,0.02401753]
[1645836079366,0.5661,2832.7,2831.5,0.0060056]
[1645836079367,9.0,2832.6,2831.5,0.0060056]
[1645836079563,0.60789398,2832.4,2829.4,6.03798]
[1645836079768,4.4283,2832.3,2829.4,0.1541]
[1645836079964,4.4283,2832.3,2829.4,1.0]
[1645836079965,0.83613,2831.7,2829.4,1.0]
[1645836080167,0.22023156,2831.4,2829.4,1.0]
[1645836080463,1.43178213,2829.9,2829.1,1.2023]
[1645836080697,0.425,2830.1,2828.1,0.01211151]
[1645836080896,3.6413,2830.8,2828.1,0.01211151]
[1645836080897,0.88454,2829.9,2828.1,0.01211151]
[1645836081099,0.88454,2829.9,2828.2,0.5]
[1645836081300,0.425,2829.8,2828.2,0.5]
[1645836081898,1.15047091,2829.3,2828.3,1.0]
[1645836082197,1.15047091,2829.3,2828.2,0.5]
[1645836082198,1.15047091,2829.3,2828.9,0.00539545]
[1645836082396,0.425,2829.2,2828.9,0.00539545]
[1645836082795,3.68933744,2830.9,2828.9,0.00539545]
[1645836082796,0.425,2829.9,2829.2,0.87581053]
[1645836082997,0.425,2829.9,2829.2,1.05240142]
[1645836083597,1.37885336,2829.8,2829.2,1.05240142]
[1645836083796,1.32885336,2829.8,2829.2,1.05240142]
[1645836084001,0.425,2829.9,2829.2,1.05240142]
[1645836084204,0.425,2830.8,2829.2,1.05240142]
[1645836084449,0.425,2830.8,2829.3,0.01228532]
[1645836084695,0.425,2830.8,2829.4,0.00615418]
[1645836084852,6.1341,2831.6,2829.4,0.00615418]
[1645836085056,3.50258976,2832.1,2829.4,0.00615418]
[1645836085057,0.425,2831.5,2829.4,0.00615418]
[1645836085354,0.5663,2831.4,2829.4,0.00615418]
[1645836085555,1.45026,2831.4,2829.2,2.05240142]
[1645836085967,0.5663,2831.4,2830.3,0.00615237]
[1645836086155,0.425,2831.4,2830.3,0.00615237]
[1645836086356,1.24867482,2831.2,2830.3,0.00615237]
[1645836086761,0.1413,2831.1,2829.2,5.13293402]
[1645836086956,1.30897,2831.4,2829.2,4.83293402]
[1645836086957,0.1413,2831.3,2829.2,4.83293402]
[1645836087156,0.1413,2831.3,2830.6,0.0061518]
[1645836087356,1.30897,2831.4,2830.6,0.0061518]
[1645836087561,0.1411,2831.3,2830.6,0.0061518]
[1645836087959,3.1924385,2831.6,2829.2,4.7317803]
[1645836088196,3.1924385,2831.6,2829.3,0.31254039]
[1645836088197,1.4244785,2831.6,2829.3,0.31254039]
[1645836088587,1.4244785,2831.6,2829.3,1.31254039]
[1645836088789,1.4244785,2831.6,2829.3,1.01254039]
[1645836088993,1.21194164,2830.5,2829.3,1.0]
[1645836089197,0.11812835,2830.5,2829.2,0.9641016]
[1645836089589,1.76842,2830.8,2829.2,0.9641016]
[1645836090095,0.88421,2830.6,2829.2,0.9641016]
[1645836090300,0.425,2830.5,2829.2,0.9641016]
[1645836090494,1.38860298,2829.8,2829.2,0.9641016]
[1645836090903,8.0,2829.7,2829.2,0.02440166]
[1645836091101,8.0,2829.7,2826.7,0.01291625]
[1645836091102,8.425,2829.7,2826.7,0.01291625]
[1645836091305,1.769587,2829.3,2827.0,3.5]
[1645836091497,1.76966,2828.9,2827.0,3.5]
[1645836091708,1.0873464,2828.2,2826.7,0.01291625]
[1645836092137,0.425,2828.3,2827.2,0.1414]
[1645836092746,0.425,2829.0,2827.1,0.1414]
[1645836093143,1.25119049,2828.7,2827.1,0.1414]
[1645836093342,0.425,2829.0,2827.1,0.1414]
[1645836093747,0.425,2829.0,2827.4,0.22267778]
[1645836093953,0.88456,2829.5,2827.5,0.1414]
[1645836094147,1.30956,2829.5,2827.5,0.1414]
[1645836094647,1.41520057,2829.0,2827.5,3.5]
[1645836094848,1.41520057,2829.0,2827.5,1.0]
[1645836095050,1.30956,2829.5,2827.5,1.0]
[1645836095255,1.0,2830.8,2828.9,0.01243357]
[1645836095453,0.5,2831.3,2830.0,1.0]
[1645836095716,2.748,2833.1,2831.1,0.01247039]
[1645836095717,0.01061632,2832.2,2831.1,0.01247039]
[1645836095917,0.01061632,2832.2,2831.8,0.01245337]
[1645836096319,0.01061632,2832.2,2831.8,0.06912201]
[1645836096517,1.29986047,2832.9,2831.0,0.1411]
[1645836096718,0.425,2832.9,2830.8,1.0]
[1645836097021,0.425,2832.9,2830.5,1.0945]
[1645836097215,3.5,2832.8,2830.2,1.0]
[1645836097416,0.43736697,2832.7,2830.2,1.0]
[1645836097616,1.02496,2832.6,2830.2,1.0]
[1645836097817,1.76801,2832.0,2830.2,1.0]
[1645836098018,0.425,2831.9,2830.3,3.5]
[1645836098219,0.425,2831.9,2830.2,1.0]
[1645836099020,1.07375587,2831.8,2830.2,1.0]
[1645836099220,0.00266252,2831.2,2830.2,1.0]
[1645836099433,0.425,2831.1,2830.2,1.0]
[1645836099935,1.2193541,2830.6,2830.2,1.0]
[1645836100748,1.2193541,2830.6,2829.3,0.00614781]
[1645836100749,4.0,2830.5,2829.3,0.00614781]
[1645836100943,1.41796275,2829.7,2829.3,0.00614781]
[1645836101145,0.5663,2830.4,2829.3,0.00614781]
[1645836101340,0.5663,2830.4,2828.6,0.01218709]
[1645836101537,0.5663,2830.4,2828.6,3.51218709]
[1645836101741,0.00266252,2830.0,2829.3,0.0061476]
[1645836102436,0.00266252,2830.0,2828.6,0.03678363]
[1645836102437,1.31098688,2830.1,2828.6,0.01218709]
[1645836102839,1.31098688,2830.1,2829.3,0.00614753]
[1645836102840,0.00266252,2829.8,2829.3,0.00614753]
[1645836103292,0.00266252,2829.8,2828.5,0.11894376]
[1645836103293,1.39118006,2829.2,2828.5,0.11894376]
[1645836103490,1.39118006,2829.2,2828.0,0.1414]
[1645836103690,1.39118006,2829.2,2827.1,4.38464]
[1645836103691,1.39118006,2829.2,2827.6,1.0]
[1645836104290,1.18484888,2828.4,2827.7,0.1414]
[1645836104490,0.425,2829.2,2827.7,0.1414]
[1645836104695,1.30967,2829.2,2827.7,0.1414]
[1645836104894,1.76967,2828.9,2827.7,0.1414]
[1645836105398,1.76967,2828.9,2827.6,1.0]
[1645836105399,0.425,2828.8,2827.6,1.0]
[1645836105600,0.425,2828.8,2826.5,0.1414]
[1645836105601,11.5,2828.7,2826.5,0.1414]
[1645836105800,5.23717021,2828.4,2826.5,0.1414]
[1645836105997,2.65573,2829.0,2826.5,0.1414]
[1645836105998,0.1414,2829.4,2826.5,12.0]
[1645836106199,0.5,2829.7,2827.9,0.0120448]
[1645836106404,1.7361673,2832.1,2829.6,0.0249291]
[1645836106598,4.9750709,2831.8,2830.1,0.01283324]
[1645836106811,1.76768,2832.1,2829.3,0.0249291]
[1645836106812,0.5,2830.3,2829.3,0.01243207]
[1645836107056,4.9750709,2831.6,2829.1,0.0249291]
[1645836107057,0.425,2830.5,2829.1,0.0249291]
[1645836107262,5.3372709,2831.4,2829.1,0.0249291]
[1645836107263,0.425,2830.6,2829.1,0.0249291]
[1645836107456,0.1413,2830.5,2829.1,0.0249291]
[1645836107859,0.8843,2830.4,2828.7,1.0]
[1645836108058,0.1413,2830.3,2828.7,1.0]
[1645836108263,0.1413,2830.3,2828.5,0.00616167]
[1645836108264,0.00273328,2829.9,2828.5,0.00616167]
[1645836108462,0.5663,2829.8,2828.5,0.00616167]
[1645836108662,0.21185234,2829.7,2828.5,0.00616167]
[1645836108859,1.31095458,2829.6,2828.5,0.00616167]
[1645836109062,1.16965458,2829.6,2828.5,0.00616167]
[1645836109259,0.88497,2829.1,2828.5,0.00616167]
[1645836109460,0.88497,2829.1,2828.5,0.00616149]
[1645836109461,1.47057621,2829.0,2828.5,0.00616149]
[1645836109659,1.70336114,2829.0,2828.5,0.00616149]
[1645836109863,1.70336114,2829.0,2827.8,0.02465213]
[1645836109864,0.22002699,2828.8,2827.8,0.02465213]
[1645836110059,1.65495485,2828.7,2827.8,0.02465213]
[1645836110261,0.425,2828.6,2827.8,0.02465213]
[1645836110459,1.11051922,2827.9,2827.8,0.02137607]
[1645836110689,0.01925621,2829.0,2827.8,0.02137607]
[1645836110897,0.425,2828.9,2827.8,0.02137607]
[1645836111096,5.5414709,2828.9,2827.8,0.02137607]
[1645836111296,0.88506,2828.8,2827.0,0.0249291]
[1645836111608,0.26890931,2829.4,2827.0,0.0249291]
[1645836111609,1.0,2830.7,2829.0,2.39146809]
[1645836111797,1.18912455,2830.7,2830.4,0.01227128]
[1645836111997,1.18912455,2830.7,2829.7,5.0]
[1645836111998,1.18912455,2830.7,2829.7,0.0129406]
[1645836112195,7.83981769,2833.5,2830.0,12.0]
[1645836112405,2.93513467,2834.4,2834.1,0.3692347]
[1645836112603,21.36788579,2836.2,2834.1,0.3692347]
[1645836112604,2.80613289,2836.2,2834.5,1.76383]
[1645836112801,5.16384474,2840.1,2834.5,1.76383]
[1645836112802,0.73740712,2837.9,2836.1,10.0]
[1645836112998,1.97803284,2839.9,2837.8,6.0]
[1645836112999,2.19465651,2839.4,2837.8,6.0]
[1645836113197,0.0460423,2839.8,2839.3,0.25035101]
[1645836113399,0.0460423,2839.8,2838.8,0.0127209]
[1645836113610,3.7511972,2840.4,2839.4,0.25377937]
[1645836113611,0.04547387,2839.7,2839.4,0.25377937]
[1645836113802,3.4611972,2840.4,2839.8,0.22204122]
[1645836114001,3.3611972,2840.4,2840.3,6.0]
[1645836114203,3.2711972,2840.4,2840.3,6.0]
[1645836114471,3.2711972,2840.4,2840.3,5.0]
[1645836114659,0.3408972,2840.4,2840.3,6.01247062]
[1645836114855,0.3408972,2840.4,2840.3,1.0]
[1645836115068,0.3408972,2840.4,2839.4,0.012]
[1645836115264,0.3408972,2840.4,2839.8,0.4496]
[1645836115461,0.3408972,2840.4,2839.4,0.012]
[1645836115661,0.3408972,2840.4,2839.7,5.0]
[1645836115859,0.3408972,2840.4,2839.4,0.012]
[1645836116461,0.3408972,2840.4,2839.7,5.0]
[1645836116667,0.00337708,2840.5,2840.3,5.0]
[1645836116863,0.00337708,2840.5,2840.4,8.5]
[1645836116864,7.708e-05,2840.5,2840.4,8.5]
[1645836117058,7.708e-05,2840.5,2840.4,3.5]
[1645836117262,1.0,2843.6,2840.5,12.0]
[1645836117460,0.00232916,2843.7,2840.6,3.5]
[1645836117767,1.04599255,2842.9,2841.6,5.0]
[1645836117961,1.04599255,2842.9,2841.6,5.012]
[1645836118199,1.04599255,2842.9,2841.6,0.012]
[1645836118200,0.1407,2842.8,2841.6,0.012]
[1645836118387,0.1407,2842.8,2841.5,0.8799156]
[1645836118587,0.1406,2843.6,2841.6,3.76598527]
[1645836118786,0.5,2843.5,2842.7,4.95]
[1645836118992,0.1406,2843.4,2841.9,3.5]
[1645836119201,0.1406,2843.4,2843.2,4.95]
[1645836119392,1.02273372,2844.0,2843.2,4.95]
[1645836119594,0.00232916,2844.7,2842.9,0.3632]
[1645836119793,3.31884093,2845.7,2842.9,0.3632]
[1645836119794,0.00232916,2843.9,2842.9,0.3632]
[1645836119994,0.5,2844.5,2842.9,0.3632]
[1645836120318,0.1517,2845.9,2842.9,0.3632]
[1645836120319,1.0,2846.9,2843.8,0.47436]
[1645836120520,0.02071969,2848.7,2846.8,4.95]
[1645836120811,0.02071969,2849.5,2847.6,0.275972]
[1645836121019,1.969e-05,2849.5,2849.2,4.95]
[1645836121203,1.969e-05,2849.5,2847.8,0.01253005]
[1645836121204,1.969e-05,2849.5,2849.4,4.95]
[1645836121395,1.969e-05,2849.5,2849.4,3.5]
[1645836121593,1.969e-05,2849.5,2848.6,0.37565949]
[1645836121594,0.05572519,2849.5,2848.8,3.5]
[1645836121794,0.05572519,2849.5,2848.6,0.37565949]
[1645836121795,0.05572519,2849.5,2849.0,0.13819997]
[1645836122052,0.05572519,2849.5,2849.4,4.95]
[1645836122253,0.05572519,2849.5,2848.7,0.3632]
[1645836122254,0.05572519,2849.5,2848.7,1.0]
[1645836122455,0.05572519,2849.5,2848.6,0.3632]
[1645836122653,0.05513708,2849.4,2848.1,0.3]
[1645836122858,0.05513708,2849.4,2848.4,0.3632]
[1645836123058,1.969e-05,2849.5,2847.9,1.23660823]
[1645836123059,0.05456865,2849.3,2847.9,1.23660823]
[1645836123262,6.865e-05,2849.3,2848.0,0.19474606]
[1645836123460,6.865e-05,2849.3,2848.0,0.06242085]
[1645836123656,6.865e-05,2849.3,2849.0,0.3632]
[1645836124058,6.865e-05,2849.3,2849.1,0.05616819]
[1645836124556,6.865e-05,2849.3,2847.6,0.80793362]
[1645836124557,6.865e-05,2849.3,2847.7,0.53848612]
[1645836124760,6.865e-05,2849.3,2848.4,0.06014716]
[1645836124956,6.865e-05,2849.3,2847.6,0.275972]
[1645836124957,1.25135957,2848.7,2848.3,1.08765]
[1645836125156,6.865e-05,2849.3,2848.3,1.08765]
[1645836125362,0.00080606,2848.8,2848.4,0.06014716]
[1645836126011,0.00080606,2848.8,2848.4,3.56014716]
[1645836126210,0.02014875,2849.2,2848.4,3.56014716]
[1645836126211,1.44192979,2848.5,2848.4,3.56014716]
[1645836126411,0.02014875,2849.2,2848.5,0.05957873]
[1645836126613,0.00080609,2848.8,2848.4,0.06014716]
[1645836126811,0.00080609,2848.8,2847.5,0.01258343]
[1645836126812,0.00080609,2848.8,2848.1,0.06185243]